bitfinex-derivatives/quotes_SOLF0:USTF0_20240820
["timestamp","ask_amount","ask_price","bid_price","bid_amount"]
[1724175018332,10.75,142.99,142.98,0.0533606]
[1724175019533,3.4968,142.97,142.93,3.4976]
[1724175019738,10.75,142.99,142.92,1.3219]
[1724175019739,10.75,142.96,142.92,1.3219]
[1724175019935,14.2471,142.96,142.92,4.8196]
[1724175020227,14.2471,142.96,142.92,3.4977]
[1724175020533,0.04762268,142.95,142.93,0.0462236]
[1724175021427,3.54482268,142.95,142.93,0.0462236]
[1724175021832,10.75,142.94,142.93,0.0462236]
[1724175022237,14.2475,142.94,142.93,0.0462236]
[1724175022728,3.498,142.92,142.85,66.39626405]
[1724175022937,14.248,142.92,142.88,3.4987]
[1724175023728,3.498,142.92,142.89,3.4987]
[1724175023935,0.04499143,142.91,142.89,3.54974648]
[1724175026933,0.04499143,142.91,142.9,3.4984]
[1724175028239,0.04499143,142.91,142.89,0.05104648]
[1724175028844,3.54339143,142.91,142.89,0.05104648]
[1724175029037,0.04499143,142.91,142.89,0.05104648]
[1724175029741,3.54329143,142.91,142.89,3.54974648]
[1724175030440,3.4984,142.9,142.89,0.05104648]
[1724175031737,14.29339143,142.91,142.89,0.05104648]
[1724175032439,3.54339143,142.91,142.89,0.05104648]
[1724175033242,3.54339143,142.91,142.89,3.54964648]
[1724175033447,0.04499143,142.91,142.89,0.05104648]
[1724175033841,0.04499143,142.91,142.89,3.54964648]
[1724175034639,0.04499143,142.91,142.9,3.4984]
[1724175035045,10.75,142.95,142.9,10.75]
[1724175035242,10.75,142.97,142.9,10.75]
[1724175035549,3.4973,142.95,142.9,10.75]
[1724175035940,3.4973,142.95,142.91,3.4981]
[1724175036142,0.05113352,142.94,142.91,3.54492738]
[1724175036643,0.05113352,142.94,142.92,3.4979]
[1724175037843,3.54863352,142.94,142.92,3.4979]
[1724175038945,3.54863352,142.94,142.91,0.04682738]
[1724175038946,3.54863352,142.94,142.91,3.54502738]
[1724175039453,3.4977,142.93,142.91,3.54502738]
[1724175040158,3.4977,142.93,142.91,0.04682738]
[1724175040656,14.2479,142.92,142.91,0.04682738]
[1724175041053,10.75,142.92,142.85,66.39626405]
[1724175041356,14.2485,142.9,142.85,66.39626405]
[1724175041748,3.4985,142.9,142.88,3.4988]
[1724175041953,3.4983,142.91,142.88,3.4988]
[1724175042149,3.55171045,142.91,142.88,3.55095278]
[1724175045972,3.4985,142.9,142.88,3.55095278]
[1724175046977,3.55171045,142.91,142.89,3.4987]
[1724175051879,3.55171045,142.91,142.88,3.55095278]
[1724175055085,3.4985,142.9,142.88,3.55095278]
[1724175055376,14.2485,142.9,142.88,3.55095278]
[1724175056882,3.4987,142.89,142.88,0.05215278]
[1724175057083,14.2487,142.89,142.88,0.05215278]
[1724175057870,10.75,142.89,142.81,10.75]
[1724175058172,10.75,142.88,142.81,12.096]
[1724175058585,3.4994,142.87,142.84,3.4997]
[1724175058789,10.75,142.86,142.8,358.01255]
[1724175059090,0.05034703,142.84,142.82,3.54576167]
[1724175059278,0.05356961,142.84,142.82,0.05145096]
[1724175060078,0.05356961,142.84,142.83,3.5001]
[1724175060294,0.05356961,142.84,142.82,0.05145096]
[1724175060973,0.05356961,142.84,142.83,3.5002]
[1724175063985,0.05356961,142.84,142.82,0.05145096]
[1724175064284,10.80356961,142.84,142.82,0.05145096]
[1724175064687,0.05356961,142.84,142.82,0.05145096]
[1724175065187,3.55366961,142.84,142.82,0.05145096]
[1724175066881,3.55366961,142.84,142.82,3.55175096]
[1724175068885,0.05356961,142.84,142.83,3.5002]
[1724175069992,10.75,142.89,142.83,10.75]
[1724175070188,2.526,142.91,142.85,10.75]
[1724175070385,3.4987,142.89,142.85,10.75]
[1724175070587,13.276,142.91,142.85,10.75]
[1724175071084,13.276,142.91,142.87,0.05179202]
[1724175071085,0.0514614,142.89,142.87,0.05179202]
[1724175071894,0.0514614,142.89,142.87,3.55079202]
[1724175072786,3.5502614,142.89,142.87,3.55079202]
[1724175073183,0.0514614,142.89,142.87,3.55079202]
[1724175073388,0.0514614,142.89,142.88,3.4989]
[1724175080994,0.0514614,142.89,142.87,0.05179202]
[1724175082096,0.0514614,142.89,142.88,3.4989]
[1724175086904,0.0514614,142.89,142.87,3.55079202]
[1724175089500,0.0514614,142.89,142.88,3.4989]
[1724175091610,3.4981,142.92,142.9,3.4984]
[1724175092703,3.54450596,142.92,142.9,3.4984]
[1724175099313,3.4982,142.91,142.89,3.4986]
[1724175101116,3.4984,142.9,142.88,3.4987]
[1724175101418,3.4984,142.9,142.87,0.05179202]
[1724175101419,10.75,142.9,142.87,0.05179202]
[1724175101723,14.2489,142.88,142.87,0.05179202]
[1724175103213,3.5001,142.84,142.8,358.01255]
[1724175103813,3.5001,142.84,142.81,3.5006]
[1724175104318,3.5453742,142.84,142.81,3.55406205]
[1724175105918,14.2953742,142.84,142.81,3.55406205]
[1724175107111,3.5453742,142.84,142.81,3.55406205]
[1724175107319,14.2953742,142.84,142.81,3.55406205]
[1724175108221,0.0452742,142.84,142.81,0.05346205]
[1724175108621,0.0452742,142.84,142.82,3.5004]
[1724175109025,0.0452742,142.84,142.81,0.05346205]
[1724175111028,0.0452742,142.84,142.83,3.5002]
[1724175111931,14.2952742,142.84,142.82,3.5003]
[1724175120227,10.7952742,142.84,142.82,3.5004]
[1724175122732,14.2953742,142.84,142.81,3.55396205]
[1724175123247,14.2953742,142.84,142.82,3.5004]
[1724175124234,0.0452742,142.84,142.81,0.05346205]
[1724175124936,0.0452742,142.84,142.82,3.5003]
[1724175125334,0.0452742,142.84,142.81,0.05346205]
[1724175125538,0.0452742,142.84,142.82,3.5004]
[1724175126442,0.0452742,142.84,142.83,3.5002]
[1724175137056,0.0452742,142.84,142.82,3.5002]
[1724175138442,3.5451742,142.84,142.82,3.5002]
[1724175138849,14.2504,142.83,142.81,0.05346205]
[1724175139462,0.0452742,142.84,142.81,0.05346205]
[1724175139463,14.2504,142.82,142.81,0.05346205]
[1724175140749,0.0452742,142.84,142.81,0.05346205]
[1724175141760,3.5002,142.83,142.81,3.55396205]
[1724175141951,0.0452742,142.84,142.81,0.05346205]
[1724175142859,3.5452742,142.84,142.82,3.5003]
[1724175144156,0.0452742,142.84,142.82,3.5003]
[1724175144867,3.5451742,142.84,142.82,3.5003]
[1724175145359,0.0452742,142.84,142.83,3.5002]
[1724175146860,0.0452742,142.84,142.82,3.5002]
[1724175147253,14.2953742,142.84,142.81,0.05346205]
[1724175147452,14.2953742,142.84,142.82,3.5004]
[1724175147852,14.2953742,142.84,142.81,0.05346205]
[1724175148058,14.2953742,142.84,142.81,3.55396205]
[1724175149460,14.2953742,142.84,142.82,3.5004]
[1724175149860,14.2953742,142.84,142.81,3.55396205]
[1724175150160,14.2504,142.82,142.81,0.05346205]
[1724175153765,3.5004,142.82,142.81,0.05346205]
[1724175153968,14.2504,142.82,142.81,0.05346205]
[1724175154967,3.5004,142.82,142.81,0.05346205]
[1724175163278,14.2504,142.82,142.81,0.05346205]
[1724175170282,10.75,142.82,142.81,0.05346205]
[1724175171880,3.5003,142.83,142.81,3.55406205]
[1724175172084,0.0452742,142.84,142.81,0.05346205]
[1724175172379,10.75,142.88,142.81,10.80346205]
[1724175172586,10.75,142.88,142.81,10.75]
[1724175172782,10.75,142.88,142.8,358.01255]
[1724175172976,14.249,142.88,142.82,10.75]
[1724175173177,14.249,142.88,142.85,3.4996]
[1724175173783,14.2492,142.87,142.85,3.5483303]
[1724175173985,10.75,142.86,142.85,0.0487303]
[1724175176980,14.2494,142.86,142.85,0.0487303]
[1724175177185,14.2494,142.86,142.8,358.01255]
[1724175177186,10.75,142.86,142.8,358.01255]
[1724175177386,10.75,142.84,142.8,358.01255]
[1724175178288,0.04421394,142.83,142.82,3.5003]
[1724175179084,0.04421394,142.83,142.81,3.5460586]
[1724175179284,0.04421394,142.83,142.81,0.0454586]
[1724175179880,0.04421394,142.83,142.82,3.5004]
[1724175184384,3.4995,142.86,142.84,3.4998]
[1724175185187,1.2354,142.92,142.81,10.7954586]
[1724175185406,10.7954288,142.88,142.85,0.05361627]
[1724175185781,0.0454288,142.88,142.86,3.4992]
[1724175186187,0.0454288,142.88,142.86,3.4994]
[1724175188099,0.0454288,142.88,142.87,3.4992]
[1724175188796,10.75,142.93,142.89,3.4985]
[1724175189389,3.4981,142.92,142.89,3.4985]
[1724175189989,3.4981,142.92,142.89,3.54684502]
[1724175190294,3.4981,142.92,142.89,0.04834502]
[1724175190295,10.75,142.9,142.89,0.04834502]
[1724175190805,10.75,142.9,142.83,1.2842]
[1724175191000,10.75,142.86,142.83,1.2842]
[1724175191697,10.79646626,142.86,142.85,3.4997]
[1724175191897,3.4998,142.85,142.83,0.04644698]
[1724175192103,10.75,142.84,142.83,0.04644698]
[1724175192301,10.75,142.85,142.83,0.04644698]
[1724175193599,10.75,142.85,142.83,3.54644698]
[1724175194207,14.2498,142.85,142.83,0.04644698]
[1724175194403,10.75,142.84,142.83,0.04644698]
[1724175194902,14.2499,142.84,142.83,0.04644698]
[1724175196101,3.4999,142.84,142.83,0.04644698]
[1724175196307,14.2499,142.84,142.83,0.04644698]
[1724175196806,10.75,142.84,142.83,0.04644698]
[1724175197504,10.75,142.85,142.83,0.04644698]
[1724175197705,3.4999,142.84,142.83,0.04644698]
[1724175197908,14.2499,142.84,142.83,0.04644698]
[1724175204202,1.32046626,142.86,142.83,0.04644698]
[1724175204203,10.75,142.85,142.83,0.04644698]
[1724175204599,0.04646626,142.86,142.83,0.04644698]
[1724175204809,0.04646626,142.86,142.84,3.4997]
[1724175207600,14.29596626,142.86,142.84,3.4997]
[1724175208012,10.75,142.85,142.83,3.54644698]
[1724175209914,10.79646626,142.86,142.84,3.4999]
[1724175213115,0.04646626,142.86,142.85,3.4997]
[1724175213411,0.04646626,142.86,142.83,0.04644698]
[1724175213618,10.79646626,142.86,142.83,0.04644698]
[1724175213921,10.79646626,142.86,142.84,3.4998]
[1724175214809,14.29586626,142.86,142.84,3.4998]
[1724175216908,3.4997,142.85,142.83,3.54644698]
[1724175220016,14.29596626,142.86,142.84,3.4998]
[1724175220415,0.04646626,142.86,142.85,3.4997]
[1724175222923,10.79646626,142.86,142.85,3.4997]
[1724175224218,0.04646626,142.86,142.85,3.4997]
[1724175224414,2.5996,142.92,142.85,3.4997]
[1724175224619,2.5996,142.92,142.85,10.75]
[1724175224823,14.2484,142.91,142.85,10.75]
[1724175225021,14.2484,142.91,142.88,3.4988]
[1724175225022,10.75,142.91,142.88,3.4988]
[1724175225222,10.75,142.91,142.85,10.75]
[1724175225428,14.2484,142.91,142.85,10.75]
[1724175225723,0.05106926,142.89,142.88,3.4988]
[1724175226526,10.80106926,142.89,142.88,3.4988]
[1724175231827,10.80106926,142.89,142.87,3.54947557]
[1724175233630,0.05106926,142.89,142.87,3.54947557]
[1724175235026,0.05106926,142.89,142.87,0.05047557]
[1724175235222,0.05106926,142.89,142.88,3.4989]
[1724175239929,0.05106926,142.89,142.87,3.54957557]
[1724175240130,0.05106926,142.89,142.87,0.05047557]
[1724175240428,10.75,142.88,142.87,0.05047557]
[1724175240638,10.75,142.88,142.8,368.76255]
[1724175240823,14.2496,142.86,142.8,368.76255]
[1724175241232,14.2496,142.86,142.83,3.5001]
[1724175241623,14.29888202,142.86,142.83,3.54916631]
[1724175241924,10.79928202,142.86,142.83,0.04906631]
[1724175242732,14.29878202,142.86,142.83,3.54906631]
[1724175242929,3.54878202,142.86,142.83,3.54906631]
[1724175243132,0.04928202,142.86,142.84,3.4999]
[1724175244727,0.04928202,142.86,142.83,0.04906631]
[1724175245236,0.04928202,142.86,142.84,3.4998]
[1724175245453,0.04928202,142.86,142.83,0.04906631]
[1724175245634,10.79928202,142.86,142.83,0.04906631]
[1724175245831,14.29878202,142.86,142.83,3.54906631]
[1724175246831,3.4998,142.85,142.83,0.04906631]
[1724175248435,14.29878202,142.86,142.83,3.54916631]
[1724175248935,0.04928202,142.86,142.83,10.79906631]
[1724175249531,0.04928202,142.86,142.84,3.4999]
[1724175250237,3.54888202,142.86,142.83,3.54906631]
[1724175250435,3.54888202,142.86,142.83,0.04906631]
[1724175250629,0.04928202,142.86,142.83,0.04906631]
[1724175251644,0.04928202,142.86,142.84,3.4999]
[1724175251839,3.54868202,142.86,142.84,3.4999]
[1724175253447,3.4997,142.85,142.83,3.54906631]
[1724175256849,3.4997,142.85,142.83,0.04906631]
[1724175257155,3.4999,142.84,142.83,0.04906631]
[1724175264957,14.2499,142.84,142.83,0.04906631]
[1724175265153,3.5004,142.82,142.8,358.01255]
[1724175265454,14.2504,142.82,142.8,361.51325]
[1724175266052,14.2504,142.82,142.8,358.01255]
[1724175266257,14.29547045,142.82,142.8,358.06590415]
[1724175266654,3.5006,142.81,142.8,358.06590415]
[1724175267549,14.2506,142.81,142.8,358.06590415]
[1724175272464,14.2506,142.81,142.8,259.33800415]
[1724175273255,3.5006,142.81,142.8,259.33800415]
[1724175273464,3.5006,142.81,142.8,253.18920415]
[1724175273656,14.2506,142.81,142.8,253.18920415]
[1724175278264,14.2506,142.81,142.8,135.73789273]
[1724175281267,14.2506,142.81,142.8,39.06789273]
[1724175282977,57.2506,142.81,142.8,39.06789273]
[1724175283868,53.75,142.81,142.73,2.5577]
[1724175284069,10.75,142.76,142.73,2.5577]
[1724175284369,10.75,142.76,142.69,10.75]
[1724175284564,10.75,142.76,142.69,13.3512]
[1724175284967,0.05373869,142.74,142.71,3.55336435]
[1724175285457,3.55613869,142.74,142.71,3.55336435]
[1724175285768,14.30613869,142.74,142.71,3.55336435]
[1724175286269,0.05373869,142.74,142.72,3.5028]
[1724175288968,0.05373869,142.74,142.73,3.5026]
[1724175289265,10.75,142.78,142.71,10.80046435]
[1724175289470,10.75,142.78,142.73,10.75]
[1724175289673,3.5016,142.77,142.74,3.5022]
[1724175289965,14.2516,142.77,142.74,3.5022]
[1724175290167,14.30506789,142.77,142.74,3.55479239]
[1724175291866,3.55506789,142.77,142.74,3.55479239]
[1724175292767,3.55506789,142.77,142.75,3.5021]
[1724175292960,0.05346789,142.77,142.75,3.5021]
[1724175294670,0.05346789,142.77,142.76,3.5019]
[1724175297056,0.05346789,142.77,142.75,3.502]
[1724175298263,3.55506789,142.77,142.75,3.502]
[1724175299772,14.30506789,142.77,142.74,4.79229239]
[1724175302475,14.30506789,142.77,142.75,3.5021]
[1724175302972,14.30506789,142.77,142.74,1.28999239]
[1724175303366,14.30506789,142.77,142.74,4.79219239]
[1724175303561,14.30506789,142.77,142.74,1.28999239]
[1724175303766,0.05346789,142.77,142.74,1.28999239]
[1724175304675,0.05346789,142.77,142.75,3.5019]
[1724175305070,0.05346789,142.77,142.76,3.5019]
[1724175305874,10.75,142.8,142.78,3.5012]
[1724175306073,10.75,142.82,142.76,10.75]
[1724175306368,14.25490112,142.82,142.76,10.75]
[1724175306571,14.25490112,142.82,142.77,3.5015]
[1724175306872,3.5014,142.78,142.75,1.3198]
[1724175307174,0.04885313,142.78,142.75,4.87297185]
[1724175307573,3.55035313,142.78,142.75,4.87297185]
[1724175308274,3.55035313,142.78,142.75,3.55317185]
[1724175308275,3.5017,142.77,142.75,3.55317185]
[1724175309175,3.5019,142.76,142.75,0.05117185]
[1724175309473,14.2519,142.76,142.75,0.05117185]
[1724175315376,3.5027,142.73,142.71,1.3678]
[1724175315682,10.03940064,142.74,142.71,1.3678]
[1724175315976,10.75,142.75,142.71,1.3678]
[1724175316373,0.04638739,142.74,142.72,0.0489952]
[1724175316971,3.54878739,142.74,142.72,0.0489952]
[1724175317170,0.04638739,142.74,142.72,0.0489952]
[1724175317370,0.04638739,142.74,142.72,3.5516952]
[1724175318676,0.04638739,142.74,142.73,3.5026]
[1724175322085,0.04638739,142.74,142.72,0.0489952]
[1724175322386,3.54888739,142.74,142.72,0.0489952]
[1724175323579,3.5026,142.73,142.72,0.0489952]
[1724175327487,3.5035,142.7,142.67,3.504]
[1724175327680,14.2535,142.7,142.67,3.504]
[1724175328386,10.75,142.7,142.66,4.7539]
[1724175328586,10.75,142.7,142.67,0.04511566]
[1724175328587,0.05069136,142.69,142.67,0.04511566]
[1724175328780,3.55439136,142.69,142.67,0.04511566]
[1724175329082,10.80069136,142.69,142.67,0.04511566]
[1724175329786,3.5038,142.68,142.67,0.04511566]
[1724175331590,10.80069136,142.69,142.62,1.28]
[1724175331793,10.75,142.64,142.62,1.28]
[1724175332992,14.30081703,142.64,142.62,1.33045924]
[1724175336089,10.79591703,142.64,142.62,4.83575924]
[1724175337497,14.30071703,142.64,142.62,4.83575924]
[1724175338181,0.04591703,142.64,142.63,3.505]
[1724175338990,3.5044,142.66,142.63,3.505]
[1724175339294,3.5042,142.67,142.62,12.08045924]
[1724175340296,0.05133547,142.66,142.62,12.08045924]
[1724175341796,0.05133547,142.66,142.65,3.5045]
[1724175343385,3.55563547,142.66,142.64,3.5046]
[1724175344099,0.05133547,142.66,142.65,3.5046]
[1724175345190,3.5039,142.68,142.66,3.5043]
[1724175346299,3.55212654,142.68,142.66,3.55237822]
[1724175347004,0.04822654,142.68,142.67,3.5041]
[1724175347300,106.79683732,143.03,142.66,0.04807822]
[1724175347301,28.0031,142.78,142.66,10.79807822]
[1724175347599,14.2533,142.7,142.64,11.9957]
[1724175347992,14.2533,142.7,142.67,3.5039]
[1724175348187,14.2533,142.7,142.64,11.9957]
[1724175348509,14.30706321,142.7,142.67,0.0473711]
[1724175348705,14.30706321,142.7,142.67,3.5513711]
[1724175349699,3.5037,142.69,142.67,0.0473711]
[1724175349897,10.75,142.69,142.67,0.0473711]
[1724175350996,10.75,142.69,142.67,3.5512711]
[1724175352201,10.75,142.69,142.68,3.5038]
[1724175352699,10.75,142.69,142.67,0.0473711]
[1724175353292,10.75,142.68,142.67,0.0473711]
[1724175353691,0.05376321,142.7,142.67,0.0473711]
[1724175353897,10.80376321,142.7,142.67,0.0473711]
[1724175354294,14.30726321,142.7,142.67,3.5512711]
[1724175354496,14.30726321,142.7,142.67,0.0473711]
[1724175355205,14.30726321,142.7,142.68,3.5038]
[1724175355791,14.30726321,142.7,142.68,3.5037]
[1724175355792,0.05376321,142.7,142.68,3.5037]
[1724175356102,0.05376321,142.7,142.67,0.0473711]
[1724175356293,0.05376321,142.7,142.67,10.7973711]
[1724175356496,2.6884,142.76,142.69,10.75]
[1724175356497,10.75,142.75,142.69,10.75]
[1724175357007,3.5025,142.74,142.71,3.5029]
[1724175357191,3.5025,142.74,142.69,10.75]
[1724175357393,10.75,142.75,142.69,10.75]
[1724175357600,10.75,142.76,142.7,10.75]
[1724175357904,0.04985032,142.73,142.71,0.0483865]
[1724175358901,0.04985032,142.73,142.72,3.5028]
[1724175364004,10.79985032,142.73,142.72,3.5028]
[1724175366414,0.04985032,142.73,142.72,3.5028]
[1724175367102,0.04985032,142.73,142.72,14.2528]
[1724175367304,10.75,142.77,142.75,3.502]
[1724175367510,10.75,142.77,142.72,10.75]
[1724175367913,10.75,142.79,142.72,10.75]
[1724175368113,14.26109923,142.79,142.72,10.75]
[1724175368315,0.04744532,142.77,142.76,3.5017]
[1724175371719,10.79744532,142.77,142.74,0.04744055]
[1724175372815,14.29914532,142.77,142.74,3.54964055]
[1724175373023,10.75,142.76,142.74,3.54964055]
[1724175373422,14.252,142.76,142.74,3.54964055]
[1724175374327,10.75,142.76,142.74,3.54964055]
[1724175375528,3.54914532,142.77,142.75,3.5021]
[1724175377234,14.252,142.76,142.74,3.54964055]
[1724175378532,14.2521,142.75,142.74,0.04744055]
[1724175379828,10.75,142.75,142.74,0.04744055]
[1724175380432,14.2521,142.75,142.74,0.04744055]
[1724175381730,10.75,142.75,142.74,0.04744055]
[1724175381929,10.75,142.76,142.74,3.54974055]
[1724175382429,14.252,142.76,142.74,0.04744055]
[1724175382940,3.5021,142.75,142.74,0.04744055]
[1724175385430,14.2519,142.76,142.74,3.54974055]
[1724175386539,14.2519,142.76,142.74,0.04744055]
[1724175387533,3.5021,142.75,142.74,0.04744055]
[1724175387737,14.2521,142.75,142.74,0.04744055]
[1724175390350,3.5021,142.75,142.74,0.04744055]
[1724175390538,14.2521,142.75,142.74,0.04744055]
[1724175393846,3.5021,142.75,142.74,0.04744055]
[1724175396755,14.2521,142.75,142.74,0.04744055]
[1724175398044,10.75,142.75,142.74,0.04744055]
[1724175399753,14.2521,142.75,142.74,0.04744055]
[1724175401139,10.75,142.75,142.74,0.04744055]
[1724175401447,14.252,142.76,142.74,0.04744055]
[1724175401645,0.04744532,142.77,142.74,0.04744055]
[1724175402149,0.04744532,142.77,142.74,2.59674055]
[1724175402453,0.04744532,142.77,142.76,3.5019]
[1724175402655,10.79744532,142.77,142.74,2.59674055]
[1724175402952,10.79744532,142.77,142.76,3.5019]
[1724175403154,10.79744532,142.77,142.74,0.04744055]
[1724175403449,10.75,142.75,142.74,0.04744055]
[1724175403645,0.04744532,142.77,142.74,10.79744055]
[1724175404044,0.04744532,142.77,142.74,0.04744055]
[1724175404647,0.04744532,142.77,142.76,3.5019]
[1724175404949,0.04744532,142.77,142.74,0.04744055]
[1724175405145,0.04744532,142.77,142.75,3.5019]
[1724175405649,3.54924532,142.77,142.75,3.5019]
[1724175405845,0.04744532,142.77,142.75,3.5019]
[1724175406249,10.79744532,142.77,142.74,3.54964055]
[1724175406955,14.29914532,142.77,142.75,3.5021]
[1724175407158,10.79744532,142.77,142.74,0.04744055]
[1724175407545,10.79744532,142.77,142.75,3.502]
[1724175407748,10.79744532,142.77,142.74,0.04744055]
[1724175408050,10.75,142.76,142.74,0.04744055]
[1724175408446,10.75,142.75,142.74,0.04744055]
[1724175408844,14.2521,142.75,142.74,0.04744055]
[1724175412557,3.5021,142.75,142.74,0.04744055]
[1724175414054,10.75,142.76,142.74,0.04744055]
[1724175414663,3.5021,142.75,142.74,0.04744055]
[1724175416459,3.502,142.76,142.74,0.04744055]
[1724175416664,10.79744532,142.77,142.74,0.04744055]
[1724175417165,3.5021,142.76,142.74,0.04744055]
[1724175417367,24.51635947,142.92,142.75,10.75]
[1724175417662,3.5009,142.8,142.76,3.5016]
[1724175417854,10.75,142.8,142.73,10.75]
[1724175418156,14.2512,142.79,142.75,3.502]
[1724175418355,14.2512,142.79,142.74,1.35]
[1724175418558,0.05350574,142.78,142.76,0.05249724]
[1724175418966,0.05350574,142.78,142.76,3.55439724]
[1724175419956,0.05350574,142.78,142.77,3.5016]
[1724175423079,10.75,142.83,142.77,10.75]
[1724175423255,3.5005,142.82,142.77,10.75]
[1724175423570,10.75,142.82,142.78,3.5012]
[1724175423759,3.5006,142.81,142.78,3.5012]
[1724175423954,3.54880567,142.81,142.78,3.54705662]
[1724175426169,14.251,142.8,142.78,0.04585662]
[1724175426972,3.5011,142.79,142.78,0.04585662]
[1724175430360,14.2509,142.8,142.78,0.04585662]
[1724175430667,3.5009,142.8,142.78,0.04585662]
[1724175433079,3.5009,142.8,142.78,3.54715662]
[1724175433779,14.29900567,142.81,142.78,3.54715662]
[1724175433973,10.79820567,142.81,142.78,3.54715662]
[1724175434285,0.04820567,142.81,142.78,0.04585662]
[1724175434969,0.04820567,142.81,142.79,3.501]
[1724175437179,0.04820567,142.81,142.8,3.5009]
[1724175440068,0.04820567,142.81,142.79,3.5009]
[1724175443369,10.79820567,142.81,142.78,0.04585662]
[1724175444080,3.5009,142.8,142.78,0.04585662]
[1724175444290,10.79820567,142.81,142.78,0.04585662]
[1724175445273,14.29900567,142.81,142.78,3.54715662]
[1724175447074,3.5009,142.8,142.78,3.54715662]
[1724175447278,3.5009,142.8,142.78,0.04585662]
[1724175447583,10.75,142.79,142.78,0.04585662]
[1724175447770,14.2511,142.79,142.78,0.04585662]
[1724175447970,10.75,142.79,142.71,2.6844]
[1724175448181,10.75,142.76,142.71,2.6844]
[1724175448374,3.5018,142.77,142.74,3.5022]
[1724175448579,3.5018,142.77,142.72,10.75]
[1724175448981,0.04924931,142.76,142.73,0.04967063]
[1724175449781,0.04924931,142.76,142.75,3.5021]
[1724175453087,0.04924931,142.76,142.74,3.5022]
[1724175453287,0.04924931,142.76,142.73,10.79967063]
[1724175454392,0.04924931,142.76,142.75,3.5021]
[1724175456791,0.04924931,142.76,142.74,3.5022]
[1724175457590,10.79924931,142.76,142.73,0.04967063]
[1724175458886,3.5023,142.75,142.73,3.55227063]
[1724175459786,3.5023,142.75,142.73,0.04967063]
[1724175460696,3.5023,142.75,142.73,3.55227063]
[1724175461688,3.5023,142.74,142.73,0.04967063]
[1724175464681,3.5023,142.75,142.73,0.04967063]
[1724175465290,14.30124931,142.76,142.73,3.55217063]
[1724175465687,14.30124931,142.76,142.73,0.04967063]
[1724175465895,0.04924931,142.76,142.74,3.5023]
[1724175467000,0.04924931,142.76,142.75,3.5021]
[1724175468292,0.04924931,142.76,142.73,0.04967063]
[1724175469491,0.04924931,142.76,142.74,3.5021]
[1724175472887,0.04924931,142.76,142.73,3.55217063]
[1724175473599,3.5021,142.75,142.73,3.55217063]
[1724175473795,0.04924931,142.76,142.73,3.55217063]
[1724175474302,3.55124931,142.76,142.74,3.5023]
[1724175474489,3.55124931,142.76,142.73,0.04967063]
[1724175474692,3.55124931,142.76,142.73,3.55207063]
[1724175477303,3.55124931,142.76,142.74,3.5023]
[1724175480898,14.30124931,142.76,142.73,3.55217063]
[1724175482591,3.5022,142.75,142.73,0.04967063]
[1724175482804,10.79924931,142.76,142.73,0.04967063]
[1724175483110,14.30114931,142.76,142.73,3.55207063]
[1724175484108,0.04924931,142.76,142.74,3.5023]
[1724175484406,0.04924931,142.76,142.74,10.75]
[1724175484605,0.04924931,142.76,142.75,3.5021]
[1724175484810,3.5012,142.79,142.75,10.75]
[1724175485001,10.75,142.82,142.77,3.5015]
[1724175485317,2.6697,142.86,142.78,10.75]
[1724175485318,10.75,142.85,142.78,10.75]
[1724175485803,0.05071162,142.83,142.8,0.04877768]
[1724175486006,3.55101162,142.83,142.8,3.54947768]
[1724175490913,3.5006,142.82,142.8,0.04877768]
[1724175491411,3.5006,142.82,142.8,3.54957768]
[1724175491908,3.55101162,142.83,142.81,3.5006]
[1724175492105,0.05071162,142.83,142.8,0.04877768]
[1724175492507,0.05071162,142.83,142.8,10.79877768]
[1724175492706,0.05071162,142.83,142.81,3.5006]
[1724175496308,0.05071162,142.83,142.82,3.5004]
[1724175497313,0.05071162,142.83,142.8,12.12327768]
[1724175498818,0.05071162,142.83,142.82,3.5004]
[1724175507125,3.55091162,142.83,142.81,3.5005]
[1724175507315,3.55091162,142.83,142.8,1.37327768]
[1724175507816,3.55091162,142.83,142.81,3.5006]
[1724175510026,0.05071162,142.83,142.8,1.37327768]
[1724175510923,0.05071162,142.83,142.81,3.5005]
[1724175512716,0.05071162,142.83,142.82,3.5004]